[Event "January 2 Late 2024"]
[Site "https://www.chess.com"]
[Date "2024.01.02"]
[Round "2"]
[White "Atanasov, Anthony"]
[Black "Caruana, Fabiano"]
[Result "0-1"]
[Board "17"]
[TimeControl "180+1"]
[WhiteFideId "2623897"]
[BlackFideId "2020009"]
[WhiteElo "2646"]
[BlackElo "3029"]
[WhiteTeam "CAN"]
[BlackTeam "USA"]
[WhiteClock "0:00:00"]
[BlackClock "0:00:04"]

1. d4 {[%clk 0:03:00]}  e6 {[%clk 0:02:58]} 2. Bf4 {[%clk 0:03:00]}  b6 {[%clk 0:02:56]} 3. e3 {[%clk 0:02:57]}  Bb7 {[%clk 0:02:57]} 4. Nf3 {[%clk 0:02:57]}  Nf6 {[%clk 0:02:56]} 5. h3 {[%clk 0:02:54]}  Be7 {[%clk 0:02:56]} 6. Bd3 {[%clk 0:02:53]}  O-O {[%clk 0:02:56]} 7. Nbd2 {[%clk 0:02:53]}  d6 {[%clk 0:02:56]} 8. O-O {[%clk 0:02:52]}  Nbd7 {[%clk 0:02:56]} 9. a4 {[%clk 0:02:43]}  a6 {[%clk 0:02:52]} 10. Bh2 {[%clk 0:02:37]}  Re8 {[%clk 0:02:52]} 11. Qe2 {[%clk 0:02:37]}  Bf8 {[%clk 0:02:52]} 12. Nc4 {[%clk 0:02:29]}  Ne4 {[%clk 0:02:48]} 13. Nfd2 {[%clk 0:02:23]}  Ndf6 {[%clk 0:02:41]} 14. Nxe4 {[%clk 0:02:21]}  Nxe4 {[%clk 0:02:41]} 15. c3 {[%clk 0:02:03]}  Qg5 {[%clk 0:02:21]} 16. f3 {[%clk 0:01:55]}  Ng3 {[%clk 0:02:19]} 17. Bxg3 {[%clk 0:01:53]}  Qxg3 {[%clk 0:02:20]} 18. e4 {[%clk 0:01:42]}  e5 {[%clk 0:02:15]} 19. Qf2 {[%clk 0:01:38]}  Qxf2+ {[%clk 0:02:13]} 20. Rxf2 {[%clk 0:01:30]}  exd4 {[%clk 0:02:13]} 21. cxd4 {[%clk 0:01:30]}  d5 {[%clk 0:02:13]} 22. exd5 {[%clk 0:00:38]}  Bxd5 {[%clk 0:02:14]} 23. Rc2 {[%clk 0:00:36]}  Rad8 {[%clk 0:02:12]} 24. Ne5 {[%clk 0:00:32]}  f6 {[%clk 0:01:24]} 25. Nc6 {[%clk 0:00:32]}  Rd6 {[%clk 0:01:24]} 26. Rac1 {[%clk 0:00:30]}  a5 {[%clk 0:00:58]} 27. Kf2 {[%clk 0:00:28]}  Bb3 {[%clk 0:00:52]} 28. Bc4+ {[%clk 0:00:28]}  Bxc4 {[%clk 0:00:52]} 29. Rxc4 {[%clk 0:00:29]}  Ra8 {[%clk 0:00:47]} 30. Re1 {[%clk 0:00:26]}  Kf7 {[%clk 0:00:47]} 31. g4 {[%clk 0:00:21]}  Rd5 {[%clk 0:00:39]} 32. f4 {[%clk 0:00:20]}  Bd6 {[%clk 0:00:38]} 33. Kf3 {[%clk 0:00:19]}  b5 {[%clk 0:00:36]} 34. axb5 {[%clk 0:00:13]}  Rxb5 {[%clk 0:00:37]} 35. Re2 {[%clk 0:00:14]}  a4 {[%clk 0:00:35]} 36. Rc3 {[%clk 0:00:10]}  h5 {[%clk 0:00:32]} 37. f5 {[%clk 0:00:10]}  hxg4+ {[%clk 0:00:29]} 38. Kxg4 {[%clk 0:00:11]}  Rg8 {[%clk 0:00:24]} 39. h4 {[%clk 0:00:05]}  g6 {[%clk 0:00:17]} 40. fxg6+ {[%clk 0:00:06]}  Rxg6+ {[%clk 0:00:18]} 41. Kh3 {[%clk 0:00:07]}  Rg1 {[%clk 0:00:17]} 42. Nd8+ {[%clk 0:00:07]}  Kg6 {[%clk 0:00:15]} 43. Ne6 {[%clk 0:00:06]}  Rh1+ {[%clk 0:00:13]} 44. Kg4 {[%clk 0:00:03]}  f5+ {[%clk 0:00:13]} 45. Kf3 {[%clk 0:00:03]}  Rxh4 {[%clk 0:00:13]} 46. Nxc7 {[%clk 0:00:02]}  Bxc7 {[%clk 0:00:06]} 47. Rg2+ {[%clk 0:00:02]}  Kh5 {[%clk 0:00:04]} 48. Rxc7 {[%clk 0:00:03]}  Rb3+ {[%clk 0:00:04]} 49. Kf2 {[%clk 0:00:02]}  Rxb2+ {[%clk 0:00:04]} 50. Kg1 {[%clk 0:00:02]}  Rxg2+ {[%clk 0:00:05]} 51. Kxg2 {[%clk 0:00:03]}  Rxd4 {[%clk 0:00:05]} 52. Ra7 {[%clk 0:00:03]}  Kg4 {[%clk 0:00:05]} 53. Kf2 {[%clk 0:00:03]}  Rb4 {[%clk 0:00:04]} 54. Ke3 {[%clk 0:00:02]}  f4+ {[%clk 0:00:04]} 55. Kf2 {[%clk 0:00:03]}  Rb2+ {[%clk 0:00:04]} 56. Kf1 {[%clk 0:00:02]}  Ra2 {[%clk 0:00:05]} 57. Rb7 {[%clk 0:00:01]}  Kf3 {[%clk 0:00:05]} 58. Rb1 {[%clk 0:00:01]}  a3 {[%clk 0:00:04]} 59. Rb3+ {[%clk 0:00:01]}  Kg4 {[%clk 0:00:04]} 60. Rc3 {[%clk 0:00:01]}  f3 {[%clk 0:00:04]} 61. Rc8 {[%clk 0:00:02]}  Ra1+ {[%clk 0:00:03]} 62. Kf2 {[%clk 0:00:02]}  a2 {[%clk 0:00:03]} 63. Rg8+ {[%clk 0:00:02]}  Kf5 {[%clk 0:00:04]} 64. Rf8+ {[%clk 0:00:02]}  Ke6 {[%clk 0:00:04]} 65. Re8+ {[%clk 0:00:03]}  Kd7 {[%clk 0:00:04]} 66. Ra8 {[%clk 0:00:02]}  Rh1 {[%clk 0:00:04]} 67. Kg3 {[%clk 0:00:00]}  a1=Q {[%clk 0:00:04]} 0-1

[Event "January 2 Late 2024"]
[Site "https://www.chess.com"]
[Date "2024.01.02"]
[Round "2"]
[White "Keymer, Vincent"]
[Black "Ozates, Tuna"]
[Result "1-0"]
[Board "18"]
[TimeControl "180+1"]
[WhiteFideId "12940690"]
[BlackFideId "6354521"]
[WhiteElo "3029"]
[BlackElo "2645"]
[WhiteTeam "GER"]
[BlackTeam "TUR"]
[WhiteClock "0:01:07"]
[BlackClock "0:01:03"]

1. a3 {[%clk 0:03:00]}  g6 {[%clk 0:02:57]} 2. d4 {[%clk 0:03:00]}  Bg7 {[%clk 0:02:58]} 3. Nf3 {[%clk 0:03:01]}  Nf6 {[%clk 0:02:57]} 4. b4 {[%clk 0:02:57]}  d6 {[%clk 0:02:55]} 5. Bb2 {[%clk 0:02:57]}  O-O {[%clk 0:02:52]} 6. e3 {[%clk 0:02:57]}  a5 {[%clk 0:02:51]} 7. b5 {[%clk 0:02:56]}  Nbd7 {[%clk 0:02:47]} 8. Be2 {[%clk 0:02:47]}  e5 {[%clk 0:02:46]} 9. O-O {[%clk 0:02:42]}  exd4 {[%clk 0:02:41]} 10. exd4 {[%clk 0:02:41]}  Nb6 {[%clk 0:02:42]} 11. a4 {[%clk 0:02:18]}  Re8 {[%clk 0:02:40]} 12. Nbd2 {[%clk 0:02:10]}  Bf5 {[%clk 0:02:34]} 13. Re1 {[%clk 0:02:06]}  Ne4 {[%clk 0:02:34]} 14. Nf1 {[%clk 0:02:06]}  h5 {[%clk 0:02:31]} 15. Bd3 {[%clk 0:02:02]}  d5 {[%clk 0:02:27]} 16. Ne5 {[%clk 0:01:59]}  Nd6 {[%clk 0:02:23]} 17. Ne3 {[%clk 0:01:42]}  Be6 {[%clk 0:02:22]} 18. Qf3 {[%clk 0:01:36]}  Ndc4 {[%clk 0:02:18]} 19. N3xc4 {[%clk 0:01:27]}  dxc4 {[%clk 0:02:17]} 20. Be4 {[%clk 0:01:28]}  Nd5 {[%clk 0:02:12]} 21. Nxc4 {[%clk 0:01:25]}  Nb4 {[%clk 0:02:10]} 22. Ne5 {[%clk 0:01:20]}  Bxe5 {[%clk 0:01:27]} 23. dxe5 {[%clk 0:01:18]}  Qe7 {[%clk 0:01:18]} 24. c3 {[%clk 0:01:15]}  Bg4 {[%clk 0:01:15]} 25. Qg3 {[%clk 0:01:09]}  Rad8 {[%clk 0:01:09]} 26. cxb4 {[%clk 0:01:07]}  Qxb4 {[%clk 0:01:03]} 27. Qc3 {[%clk 0:01:07]} 1-0

[Event "January 2 Late 2024"]
[Site "https://www.chess.com"]
[Date "2024.01.02"]
[Round "2"]
[White "Rojas Alarcon, Julian Antonio"]
[Black "Hakobyan, Aram"]
[Result "0-1"]
[Board "20"]
[TimeControl "180+1"]
[WhiteFideId "5107407"]
[BlackFideId "13306677"]
[WhiteElo "2643"]
[BlackElo "3022"]
[WhiteTeam "MEX"]
[BlackTeam "ARM"]
[WhiteClock "0:00:17"]
[BlackClock "0:00:54"]

1. c4 {[%clk 0:03:00]}  Nf6 {[%clk 0:02:58]} 2. g3 {[%clk 0:03:00]}  c6 {[%clk 0:02:51]} 3. Bg2 {[%clk 0:03:01]}  d5 {[%clk 0:02:51]} 4. Nf3 {[%clk 0:02:49]}  dxc4 {[%clk 0:02:49]} 5. a4 {[%clk 0:02:49]}  a5 {[%clk 0:02:43]} 6. Na3 {[%clk 0:02:48]}  Be6 {[%clk 0:02:40]} 7. Ng5 {[%clk 0:02:40]}  Bd5 {[%clk 0:02:28]} 8. e4 {[%clk 0:02:39]}  h6 {[%clk 0:02:29]} 9. exd5 {[%clk 0:02:38]}  hxg5 {[%clk 0:02:29]} 10. dxc6 {[%clk 0:02:36]}  Nxc6 {[%clk 0:02:30]} 11. Nxc4 {[%clk 0:02:36]}  e6 {[%clk 0:02:27]} 12. O-O {[%clk 0:02:30]}  Qd3 {[%clk 0:02:06]} 13. b3 {[%clk 0:02:20]}  Nd4 {[%clk 0:01:55]} 14. Ne5 {[%clk 0:01:40]}  Ne2+ {[%clk 0:01:30]} 15. Kh1 {[%clk 0:01:39]}  Nxg3+ {[%clk 0:01:31]} 16. fxg3 {[%clk 0:01:27]}  Qxg3 {[%clk 0:01:31]} 17. Nf3 {[%clk 0:00:52]}  Bd6 {[%clk 0:01:21]} 18. Kg1 {[%clk 0:00:44]}  Rxh2 {[%clk 0:01:10]} 19. Qe2 {[%clk 0:00:30]}  O-O-O {[%clk 0:00:59]} 20. d4 {[%clk 0:00:30]}  Rdh8 {[%clk 0:00:56]} 21. Bxg5 {[%clk 0:00:17]}  Rh1# {[%clk 0:00:54]} 0-1

[Event "January 2 Late 2024"]
[Site "https://www.chess.com"]
[Date "2024.01.02"]
[Round "2"]
[White "Bjelobrk, Igor"]
[Black "Sarana, Alexey"]
[Result "0-1"]
[Board "22"]
[TimeControl "180+1"]
[WhiteFideId "4300726"]
[BlackFideId "24133795"]
[WhiteElo "2640"]
[BlackElo "3008"]
[WhiteTeam "AUS"]
[BlackTeam "SRB"]
[WhiteClock "0:00:01"]
[BlackClock "0:00:14"]

1. d4 {[%clk 0:03:00]}  Nf6 {[%clk 0:02:59]} 2. c4 {[%clk 0:03:01]}  e6 {[%clk 0:03:00]} 3. g3 {[%clk 0:03:00]}  d5 {[%clk 0:03:00]} 4. Nf3 {[%clk 0:03:00]}  Be7 {[%clk 0:03:00]} 5. Bg2 {[%clk 0:02:59]}  O-O {[%clk 0:03:01]} 6. O-O {[%clk 0:02:59]}  dxc4 {[%clk 0:03:01]} 7. Qc2 {[%clk 0:02:59]}  a6 {[%clk 0:03:01]} 8. a4 {[%clk 0:02:57]}  Bd7 {[%clk 0:03:01]} 9. Rd1 {[%clk 0:02:56]}  Nc6 {[%clk 0:02:57]} 10. Qxc4 {[%clk 0:02:53]}  b5 {[%clk 0:02:57]} 11. axb5 {[%clk 0:02:36]}  axb5 {[%clk 0:02:58]} 12. Rxa8 {[%clk 0:02:37]}  bxc4 {[%clk 0:02:59]} 13. Rxd8 {[%clk 0:02:37]}  Rxd8 {[%clk 0:02:59]} 14. Nbd2 {[%clk 0:02:30]}  Na5 {[%clk 0:02:59]} 15. Ne5 {[%clk 0:02:29]}  Ba4 {[%clk 0:02:59]} 16. Re1 {[%clk 0:02:25]}  Bb4 {[%clk 0:02:16]} 17. e3 {[%clk 0:02:23]}  c5 {[%clk 0:02:16]} 18. Rf1 {[%clk 0:02:13]}  cxd4 {[%clk 0:02:16]} 19. Ndxc4 {[%clk 0:02:10]}  Nxc4 {[%clk 0:01:12]} 20. Nxc4 {[%clk 0:02:10]}  Bb5 {[%clk 0:01:12]} 21. b3 {[%clk 0:02:09]}  d3 {[%clk 0:01:13]} 22. Rd1 {[%clk 0:01:53]}  d2 {[%clk 0:01:07]} 23. Bb2 {[%clk 0:01:51]}  Nd7 {[%clk 0:00:47]} 24. Be4 {[%clk 0:01:45]}  Nc5 {[%clk 0:00:36]} 25. Bc2 {[%clk 0:01:44]}  Nd3 {[%clk 0:00:34]} 26. Bd4 {[%clk 0:01:35]}  Ne1 {[%clk 0:00:33]} 27. Be4 {[%clk 0:01:35]}  f5 {[%clk 0:00:32]} 28. Bh1 {[%clk 0:01:22]}  Nc2 {[%clk 0:00:32]} 29. Be5 {[%clk 0:01:05]}  Na3 {[%clk 0:00:26]} 30. Bf3 {[%clk 0:00:29]}  Nxc4 {[%clk 0:00:24]} 31. bxc4 {[%clk 0:00:29]}  Ba4 {[%clk 0:00:24]} 32. Kf1 {[%clk 0:00:18]}  Bxd1 {[%clk 0:00:24]} 33. Bxd1 {[%clk 0:00:19]}  Rc8 {[%clk 0:00:24]} 34. Ke2 {[%clk 0:00:17]}  Rxc4 {[%clk 0:00:24]} 35. Kd3 {[%clk 0:00:16]}  Rc1 {[%clk 0:00:25]} 36. Ke2 {[%clk 0:00:17]}  Kf7 {[%clk 0:00:24]} 37. f4 {[%clk 0:00:17]}  h5 {[%clk 0:00:24]} 38. Bd4 {[%clk 0:00:17]}  g6 {[%clk 0:00:23]} 39. Bb6 {[%clk 0:00:17]}  Bc3 {[%clk 0:00:22]} 40. Ba7 {[%clk 0:00:16]}  Ke7 {[%clk 0:00:22]} 41. Bb6 {[%clk 0:00:16]}  Kd6 {[%clk 0:00:23]} 42. Ba7 {[%clk 0:00:17]}  Kd5 {[%clk 0:00:21]} 43. Bb6 {[%clk 0:00:16]}  Kc4 {[%clk 0:00:21]} 44. Ba7 {[%clk 0:00:16]}  Bb4 {[%clk 0:00:14]} 45. Bd4 {[%clk 0:00:14]}  Rb1 {[%clk 0:00:14]} 46. Bb6 {[%clk 0:00:13]}  Bc5 {[%clk 0:00:14]} 47. Ba5 {[%clk 0:00:13]}  Rb2 {[%clk 0:00:13]} 48. h4 {[%clk 0:00:07]}  Ra2 {[%clk 0:00:13]} 49. Bc7 {[%clk 0:00:07]}  Ra3 {[%clk 0:00:14]} 50. Kxd2 {[%clk 0:00:06]}  Bxe3+ {[%clk 0:00:14]} 51. Ke2 {[%clk 0:00:01]}  Bc5 {[%clk 0:00:14]} 0-1

[Event "January 2 Late 2024"]
[Site "https://www.chess.com"]
[Date "2024.01.02"]
[Round "2"]
[White "Kollars, Dmitrij"]
[Black "Martin Fuentes, Alberto"]
[Result "1-0"]
[Board "23"]
[TimeControl "180+1"]
[WhiteFideId "12909572"]
[BlackFideId "2292289"]
[WhiteElo "3001"]
[BlackElo "2636"]
[WhiteTeam "GER"]
[BlackTeam "ESP"]
[WhiteClock "0:00:09"]
[BlackClock "0:00:02"]

1. e4 {[%clk 0:03:00]}  e6 {[%clk 0:03:00]} 2. d4 {[%clk 0:03:00]}  d5 {[%clk 0:03:00]} 3. Nc3 {[%clk 0:02:59]}  Bb4 {[%clk 0:02:58]} 4. Ne2 {[%clk 0:02:58]}  dxe4 {[%clk 0:02:57]} 5. a3 {[%clk 0:02:58]}  Bxc3+ {[%clk 0:02:58]} 6. Nxc3 {[%clk 0:02:59]}  Nc6 {[%clk 0:02:58]} 7. d5 {[%clk 0:02:59]}  exd5 {[%clk 0:02:58]} 8. Qxd5 {[%clk 0:03:00]}  Be6 {[%clk 0:02:52]} 9. Qxd8+ {[%clk 0:02:38]}  Rxd8 {[%clk 0:02:50]} 10. Bb5 {[%clk 0:02:38]}  Ne7 {[%clk 0:02:38]} 11. Nxe4 {[%clk 0:02:37]}  a6 {[%clk 0:02:34]} 12. Bd3 {[%clk 0:02:32]}  Ne5 {[%clk 0:02:31]} 13. Be2 {[%clk 0:02:32]}  Bd5 {[%clk 0:02:17]} 14. f3 {[%clk 0:02:10]}  Bxe4 {[%clk 0:02:16]} 15. fxe4 {[%clk 0:02:11]}  N7c6 {[%clk 0:02:16]} 16. Bf4 {[%clk 0:02:03]}  f6 {[%clk 0:02:13]} 17. Rd1 {[%clk 0:01:57]}  Ke7 {[%clk 0:02:12]} 18. Kf2 {[%clk 0:01:56]}  Rxd1 {[%clk 0:02:11]} 19. Rxd1 {[%clk 0:01:55]}  Rd8 {[%clk 0:02:11]} 20. Rd5 {[%clk 0:01:56]}  Ke6 {[%clk 0:01:59]} 21. c4 {[%clk 0:01:44]}  Rd6 {[%clk 0:01:49]} 22. Ke3 {[%clk 0:01:30]}  Ne7 {[%clk 0:01:44]} 23. Rxd6+ {[%clk 0:00:49]}  Kxd6 {[%clk 0:01:45]} 24. b4 {[%clk 0:00:49]}  c5 {[%clk 0:01:43]} 25. Kd2 {[%clk 0:00:47]}  Nc6 {[%clk 0:01:41]} 26. Kc3 {[%clk 0:00:46]}  b6 {[%clk 0:01:34]} 27. Be3 {[%clk 0:00:44]}  h6 {[%clk 0:01:23]} 28. Bd1 {[%clk 0:00:35]}  a5 {[%clk 0:01:15]} 29. bxc5+ {[%clk 0:00:35]}  bxc5 {[%clk 0:01:16]} 30. h3 {[%clk 0:00:35]}  Nd4 {[%clk 0:01:06]} 31. Bxd4 {[%clk 0:00:26]}  cxd4+ {[%clk 0:01:05]} 32. Kxd4 {[%clk 0:00:27]}  Nc6+ {[%clk 0:01:06]} 33. Kc3 {[%clk 0:00:28]}  Kc5 {[%clk 0:01:06]} 34. Kb3 {[%clk 0:00:19]}  Ne5 {[%clk 0:00:51]} 35. Be2 {[%clk 0:00:19]}  Ng6 {[%clk 0:00:50]} 36. Ka4 {[%clk 0:00:18]}  Nf4 {[%clk 0:00:49]} 37. Bf1 {[%clk 0:00:17]}  Kb6 {[%clk 0:00:49]} 38. c5+ {[%clk 0:00:17]}  Kxc5 {[%clk 0:00:48]} 39. Kxa5 {[%clk 0:00:18]}  Ne6 {[%clk 0:00:45]} 40. a4 {[%clk 0:00:17]}  g5 {[%clk 0:00:41]} 41. Ka6 {[%clk 0:00:15]}  Kc6 {[%clk 0:00:40]} 42. Bb5+ {[%clk 0:00:14]}  Kc7 {[%clk 0:00:40]} 43. Ka5 {[%clk 0:00:11]}  Nc5 {[%clk 0:00:40]} 44. Kb4 {[%clk 0:00:11]}  Nxe4 {[%clk 0:00:40]} 45. Kc4 {[%clk 0:00:12]}  Kd6 {[%clk 0:00:27]} 46. Kd4 {[%clk 0:00:12]}  f5 {[%clk 0:00:28]} 47. Bd3 {[%clk 0:00:11]}  Nc5 {[%clk 0:00:25]} 48. Bc2 {[%clk 0:00:09]}  Ne6+ {[%clk 0:00:22]} 49. Kc4 {[%clk 0:00:09]}  f4 {[%clk 0:00:20]} 50. a5 {[%clk 0:00:10]}  h5 {[%clk 0:00:19]} 51. Bd1 {[%clk 0:00:09]}  Ng7 {[%clk 0:00:14]} 52. Bf3 {[%clk 0:00:08]}  Kc7 {[%clk 0:00:09]} 53. Kc5 {[%clk 0:00:07]}  Nf5 {[%clk 0:00:05]} 54. a6 {[%clk 0:00:07]}  Kb8 {[%clk 0:00:03]} 55. Kb6 {[%clk 0:00:08]}  Kc8 {[%clk 0:00:01]} 56. a7 {[%clk 0:00:09]}  Kd7 {[%clk 0:00:02]} 57. a8=Q {[%clk 0:00:09]}  Kd6 {[%clk 0:00:02]} 58. Qd5+ {[%clk 0:00:09]} 1-0

[Event "January 2 Late 2024"]
[Site "https://www.chess.com"]
[Date "2024.01.02"]
[Round "2"]
[White "Le, Tuan Minh"]
[Black "Hajiyev, Kanan"]
[Result "1-0"]
[Board "25"]
[TimeControl "180+1"]
[WhiteFideId "12401153"]
[BlackFideId "13404148"]
[WhiteElo "2998"]
[BlackElo "2635"]
[WhiteTeam "VIE"]
[BlackTeam "AZE"]
[WhiteClock "0:01:42"]
[BlackClock "0:01:08"]

1. d4 {[%clk 0:02:52]}  d5 {[%clk 0:02:58]} 2. Nf3 {[%clk 0:02:52]}  c6 {[%clk 0:02:59]} 3. Bf4 {[%clk 0:02:51]}  Nf6 {[%clk 0:03:00]} 4. e3 {[%clk 0:02:52]}  Bf5 {[%clk 0:02:58]} 5. c4 {[%clk 0:02:52]}  e6 {[%clk 0:02:58]} 6. Qb3 {[%clk 0:02:51]}  Qb6 {[%clk 0:02:58]} 7. c5 {[%clk 0:02:43]}  Qxb3 {[%clk 0:02:56]} 8. axb3 {[%clk 0:02:43]}  Nbd7 {[%clk 0:02:52]} 9. b4 {[%clk 0:02:43]}  Nh5 {[%clk 0:02:52]} 10. Nc3 {[%clk 0:02:39]}  Nxf4 {[%clk 0:02:51]} 11. exf4 {[%clk 0:02:40]}  Be7 {[%clk 0:02:38]} 12. b5 {[%clk 0:02:39]}  O-O {[%clk 0:02:38]} 13. Be2 {[%clk 0:02:31]}  cxb5 {[%clk 0:02:33]} 14. Bxb5 {[%clk 0:02:29]}  a6 {[%clk 0:02:33]} 15. Bxd7 {[%clk 0:02:29]}  Rfd8 {[%clk 0:02:24]} 16. Ba4 {[%clk 0:02:27]}  Bf6 {[%clk 0:02:19]} 17. Kd2 {[%clk 0:02:22]}  Bg4 {[%clk 0:02:20]} 18. Ne5 {[%clk 0:02:22]}  Bh5 {[%clk 0:02:20]} 19. Bd1 {[%clk 0:02:22]}  Bg6 {[%clk 0:02:18]} 20. Bc2 {[%clk 0:02:22]}  Bh5 {[%clk 0:02:15]} 21. f3 {[%clk 0:02:19]}  Rac8 {[%clk 0:02:08]} 22. b4 {[%clk 0:02:18]}  Be7 {[%clk 0:02:04]} 23. g4 {[%clk 0:02:17]}  Bg6 {[%clk 0:02:03]} 24. Bxg6 {[%clk 0:02:15]}  hxg6 {[%clk 0:02:03]} 25. h4 {[%clk 0:02:15]}  Bf8 {[%clk 0:01:53]} 26. Ke3 {[%clk 0:02:12]}  Ra8 {[%clk 0:01:43]} 27. Ra2 {[%clk 0:01:59]}  Rac8 {[%clk 0:01:43]} 28. Rah2 {[%clk 0:01:59]}  Be7 {[%clk 0:01:37]} 29. Na4 {[%clk 0:01:57]}  Ra8 {[%clk 0:01:36]} 30. Nb6 {[%clk 0:01:57]}  Rab8 {[%clk 0:01:34]} 31. h5 {[%clk 0:01:53]}  g5 {[%clk 0:01:34]} 32. fxg5 {[%clk 0:01:54]}  Bxg5+ {[%clk 0:01:34]} 33. f4 {[%clk 0:01:55]}  Bf6 {[%clk 0:01:32]} 34. Ned7 {[%clk 0:01:52]}  Be7 {[%clk 0:01:24]} 35. h6 {[%clk 0:01:50]}  gxh6 {[%clk 0:01:19]} 36. Rxh6 {[%clk 0:01:49]}  Rxd7 {[%clk 0:01:16]} 37. Nxd7 {[%clk 0:01:49]}  Rd8 {[%clk 0:01:17]} 38. Ne5 {[%clk 0:01:42]}  Rf8 {[%clk 0:01:08]} 39. Rh8+ {[%clk 0:01:42]} 1-0

[Event "January 2 Late 2024"]
[Site "https://www.chess.com"]
[Date "2024.01.02"]
[Round "2"]
[White "Espinoza Villanueva, Rodrigo"]
[Black "Iturrizaga Bonelli, Eduardo"]
[Result "1-0"]
[Board "26"]
[TimeControl "180+1"]
[WhiteFideId "5140188"]
[BlackFideId "3901211"]
[WhiteElo "2631"]
[BlackElo "2997"]
[WhiteTeam "MEX"]
[BlackTeam "ESP"]
[WhiteClock "0:00:07"]
[BlackClock "0:00:00"]

1. e4 {[%clk 0:02:58]}  c5 {[%clk 0:03:00]} 2. Nf3 {[%clk 0:02:58]}  e6 {[%clk 0:03:01]} 3. b3 {[%clk 0:02:55]}  b6 {[%clk 0:03:00]} 4. Bb2 {[%clk 0:02:53]}  Bb7 {[%clk 0:03:01]} 5. d3 {[%clk 0:02:51]}  Nc6 {[%clk 0:02:59]} 6. Nbd2 {[%clk 0:02:50]}  Nf6 {[%clk 0:02:59]} 7. g3 {[%clk 0:02:50]}  d5 {[%clk 0:02:57]} 8. Bg2 {[%clk 0:02:48]}  Be7 {[%clk 0:02:58]} 9. O-O {[%clk 0:02:46]}  O-O {[%clk 0:02:58]} 10. Re1 {[%clk 0:02:45]}  a5 {[%clk 0:02:57]} 11. a4 {[%clk 0:02:37]}  d4 {[%clk 0:02:55]} 12. Nc4 {[%clk 0:02:34]}  Nd7 {[%clk 0:02:55]} 13. e5 {[%clk 0:02:33]}  Qc7 {[%clk 0:02:55]} 14. Qe2 {[%clk 0:02:29]}  Nb4 {[%clk 0:02:49]} 15. h4 {[%clk 0:02:25]}  h6 {[%clk 0:02:48]} 16. Qd2 {[%clk 0:02:22]}  Rad8 {[%clk 0:02:44]} 17. Re2 {[%clk 0:02:19]}  Rfe8 {[%clk 0:02:34]} 18. Rae1 {[%clk 0:02:16]}  Nf8 {[%clk 0:02:35]} 19. Qf4 {[%clk 0:02:13]}  Bd5 {[%clk 0:02:32]} 20. Bc1 {[%clk 0:02:09]}  Qb7 {[%clk 0:02:22]} 21. Qg4 {[%clk 0:02:06]}  Kh7 {[%clk 0:02:01]} 22. Bf4 {[%clk 0:01:58]}  Ng6 {[%clk 0:01:57]} 23. Bc1 {[%clk 0:01:50]}  Na2 {[%clk 0:01:55]} 24. Bd2 {[%clk 0:01:48]}  Rd7 {[%clk 0:01:39]} 25. h5 {[%clk 0:01:38]}  Nf8 {[%clk 0:01:32]} 26. Re4 {[%clk 0:01:36]}  Bd8 {[%clk 0:01:19]} 27. Nh2 {[%clk 0:01:33]}  Bc7 {[%clk 0:01:16]} 28. Rf4 {[%clk 0:01:24]}  Bxg2 {[%clk 0:01:15]} 29. f3 {[%clk 0:01:24]}  Bxf3 {[%clk 0:01:10]} 30. Nxf3 {[%clk 0:01:25]}  f5 {[%clk 0:01:05]} 31. Qh3 {[%clk 0:01:09]}  Rf7 {[%clk 0:01:04]} 32. g4 {[%clk 0:01:06]}  fxg4 {[%clk 0:01:04]} 33. Qxg4 {[%clk 0:01:07]}  Rxf4 {[%clk 0:01:04]} 34. Qxf4 {[%clk 0:01:07]}  Nd7 {[%clk 0:01:04]} 35. Nd6 {[%clk 0:00:57]}  Bxd6 {[%clk 0:01:02]} 36. exd6 {[%clk 0:00:58]}  Rf8 {[%clk 0:01:02]} 37. Ng5+ {[%clk 0:00:45]}  hxg5 {[%clk 0:00:56]} 38. Qxg5 {[%clk 0:00:46]}  Rf6 {[%clk 0:00:55]} 39. Rxe6 {[%clk 0:00:41]}  Qf3 {[%clk 0:00:38]} 40. Rxf6 {[%clk 0:00:36]}  Qxf6 {[%clk 0:00:39]} 41. Qg4 {[%clk 0:00:31]}  Qxd6 {[%clk 0:00:38]} 42. Bf4 {[%clk 0:00:31]}  Qe7 {[%clk 0:00:31]} 43. Qg6+ {[%clk 0:00:29]}  Kh8 {[%clk 0:00:11]} 44. h6 {[%clk 0:00:30]}  gxh6 {[%clk 0:00:11]} 45. Bxh6 {[%clk 0:00:28]}  Ne5 {[%clk 0:00:09]} 46. Qxb6 {[%clk 0:00:20]}  Nb4 {[%clk 0:00:03]} 47. Qxa5 {[%clk 0:00:17]}  Qf6 {[%clk 0:00:02]} 48. Qxc5 {[%clk 0:00:13]}  Nf3+ {[%clk 0:00:02]} 49. Kf2 {[%clk 0:00:10]}  Ng5+ {[%clk 0:00:02]} 50. Kg1 {[%clk 0:00:09]}  Nh3+ {[%clk 0:00:00]} 51. Kg2 {[%clk 0:00:07]} 1-0

[Event "January 2 Late 2024"]
[Site "https://www.chess.com"]
[Date "2024.01.02"]
[Round "2"]
[White "Lamaze, Simon"]
[Black "Salem, A.R. Saleh"]
[Result "1-0"]
[Board "28"]
[TimeControl "180+1"]
[WhiteFideId "36069264"]
[BlackFideId "9301348"]
[WhiteElo "2624"]
[BlackElo "2987"]
[WhiteTeam "FRA"]
[BlackTeam "UAE"]
[WhiteClock "0:00:33"]
[BlackClock "0:00:00"]

1. e4 {[%clk 0:03:00]}  e5 {[%clk 0:02:56]} 2. Nf3 {[%clk 0:03:01]}  Nc6 {[%clk 0:02:53]} 3. Bc4 {[%clk 0:03:01]}  Nf6 {[%clk 0:02:52]} 4. d3 {[%clk 0:03:01]}  Bc5 {[%clk 0:02:52]} 5. Bg5 {[%clk 0:03:02]}  h6 {[%clk 0:02:51]} 6. Bh4 {[%clk 0:03:02]}  d6 {[%clk 0:02:49]} 7. c3 {[%clk 0:03:02]}  a6 {[%clk 0:02:49]} 8. Nbd2 {[%clk 0:03:02]}  Ba7 {[%clk 0:02:50]} 9. O-O {[%clk 0:02:58]}  g5 {[%clk 0:02:50]} 10. Bg3 {[%clk 0:02:58]}  O-O {[%clk 0:02:51]} 11. a4 {[%clk 0:02:56]}  Nh7 {[%clk 0:02:50]} 12. Re1 {[%clk 0:02:56]}  Kh8 {[%clk 0:02:48]} 13. b4 {[%clk 0:02:53]}  h5 {[%clk 0:02:47]} 14. h4 {[%clk 0:02:50]}  Bg4 {[%clk 0:02:40]} 15. Qb3 {[%clk 0:02:46]}  f5 {[%clk 0:02:37]} 16. exf5 {[%clk 0:02:41]}  Rxf5 {[%clk 0:02:35]} 17. Be6 {[%clk 0:02:36]}  Rf8 {[%clk 0:02:29]} 18. Bd5 {[%clk 0:02:29]}  Rb8 {[%clk 0:01:59]} 19. d4 {[%clk 0:02:01]}  Ne7 {[%clk 0:01:57]} 20. Be6 {[%clk 0:01:57]}  Ng6 {[%clk 0:01:48]} 21. hxg5 {[%clk 0:01:49]}  Bxf3 {[%clk 0:01:40]} 22. Nxf3 {[%clk 0:01:48]}  Rxf3 {[%clk 0:01:34]} 23. gxf3 {[%clk 0:01:45]}  Nxg5 {[%clk 0:01:34]} 24. Bd5 {[%clk 0:01:36]}  Qf6 {[%clk 0:01:31]} 25. dxe5 {[%clk 0:01:33]}  dxe5 {[%clk 0:01:31]} 26. c4 {[%clk 0:01:31]}  h4 {[%clk 0:01:25]} 27. Bh2 {[%clk 0:01:29]}  c6 {[%clk 0:01:10]} 28. Be4 {[%clk 0:01:26]}  Rg8 {[%clk 0:01:09]} 29. c5 {[%clk 0:01:22]}  Nf4 {[%clk 0:01:01]} 30. Kh1 {[%clk 0:01:20]}  Ngh3 {[%clk 0:00:58]} 31. Qb2 {[%clk 0:01:03]}  a5 {[%clk 0:00:45]} 32. Rg1 {[%clk 0:01:01]}  Nxg1 {[%clk 0:00:41]} 33. Rxg1 {[%clk 0:01:02]}  Rxg1+ {[%clk 0:00:40]} 34. Kxg1 {[%clk 0:00:55]}  axb4 {[%clk 0:00:32]} 35. Bxf4 {[%clk 0:00:53]}  Qxf4 {[%clk 0:00:33]} 36. Qxb4 {[%clk 0:00:53]}  h3 {[%clk 0:00:29]} 37. Qxb7 {[%clk 0:00:47]}  Qg5+ {[%clk 0:00:28]} 38. Kf1 {[%clk 0:00:47]}  Qc1+ {[%clk 0:00:03]} 39. Ke2 {[%clk 0:00:46]}  Qc4+ {[%clk 0:00:01]} 40. Bd3 {[%clk 0:00:42]}  Qa2+ {[%clk 0:00:02]} 41. Kf1 {[%clk 0:00:41]}  Qg8 {[%clk 0:00:01]} 42. Qe7 {[%clk 0:00:38]}  Bb8 {[%clk 0:00:01]} 43. Qh4+ {[%clk 0:00:37]}  Kg7 {[%clk 0:00:02]} 44. Qxh3 {[%clk 0:00:37]}  Qb3 {[%clk 0:00:02]} 45. Qh7+ {[%clk 0:00:37]}  Kf6 {[%clk 0:00:03]} 46. Qh8+ {[%clk 0:00:35]}  Kf7 {[%clk 0:00:03]} 47. Qh7+ {[%clk 0:00:32]}  Kf6 {[%clk 0:00:03]} 48. Qg6+ {[%clk 0:00:32]}  Ke7 {[%clk 0:00:03]} 49. Qg7+ {[%clk 0:00:33]}  Ke6 {[%clk 0:00:00]} 50. Qg8+ {[%clk 0:00:33]} 1-0